Cogmind - Beta 15 @@@ ROGUE MODE // 2025.09.19 @ 21:57:56 Player: BlobtheGreat Result: Escaped! Performance ------------- Evolutions (9) 4500 Regions Visited (26) 5200 Robots Destroyed (388) 1940 Value Destroyed (18854) 18854 Prototype IDs (69) 1380 Alien Tech Used (5) 1000 Bonus (17104) 17104 TOTAL SCORE: 49978 Bonus ------- Triggered High Security 500 High Alert Combat Kills 3717 Follower Combat Kills 1314 Aligned with FarCom 300 Met Data Miner 300 Met Warlord at Base 500 MAIN.C Attacked Warlord 500 Warlord Defense Kills 1042 Built Enhanced Grunts 300 A7 Reached Mainframe 300 Met R17 at Cetus 500 Met R17 at Research 2000 Met Warlord at Research 2000 Invited to Help at Command 2000 Win 3000 Friendly Fire -1169 Cogmind --------- Core Integrity 971/1600 Matter 260/300 Energy 316/325 System Corruption 27% Temperature Cool (6) Movement Walking (190) Ox1 Location To Epsilon Eridani Parts ------- > --- POWER (3) -------- Reinforced Antimatter Reactor > --- PROPULSION (6) --- Myomer Leg Myomer Leg Centrium Leg Centrium Leg > --- UTILITY (13) ----- Advanced Heat Sink High-capacity Storage Unit Advanced Signal Interpreter Advanced Melee Analysis Suite Advanced Melee Analysis Suite Advanced Target Analyzer Experimental Core Analyzer Experimental Core Analyzer Nanoactuators Advanced Force Field > --- WEAPON (4) ------- Ionic Axe Ionic Axe > --- INVENTORY (20) --- Quantum Reactor Myomer Leg Myomer Leg Experimental Heat Sink Advanced Sensor Array Quantum Capacitor Subatomic Replicator Compact HERF Cannon Vortex Driver (24) Vortex Driver (17) Core Cannon Micro-nuke Launcher Ionic Axe Ionic Axe Lance Peak State ------------ > --- POWER ------------ Antimatter Reactor Vortex Chain Reactor > --- PROPULSION ------- Biometal Leg Biometal Leg Biometal Leg Biometal Leg Enhanced Biometal Leg Centrium Leg > --- UTILITY ---------- High-capacity Storage Unit Advanced Sensor Array Advanced Signal Interpreter Advanced Melee Analysis Suite Advanced Melee Analysis Suite Advanced Target Analyzer Experimental Core Analyzer Experimental Core Analyzer Nanoactuators Advanced Reaction Control System Advanced Phase Shifter Advanced Cloaking Device Centrium Medium Armor Plating > --- WEAPON ----------- Micro-nuke Launcher Sigix Broadsword Lance > --- INVENTORY -------- Quantum Reactor Light Quantum Reactor Biometal Leg Improved Thunder Leg Centrium Leg Spectral Analyzer Nanoactuators Heavy Armor Plating Subatomic Replicator Compact HERF Cannon Vortex Driver Vortex Driver Core Cannon Sigix Terminator Phasing Sabre [Rating: 223] Favorites ----------- Power Cooled Deuterium Engine Engine Cooled Deuterium Engine Power Core Neutrino Core Reactor Vortex Chain Reactor Propulsion Enhanced Flexi-carbon Leg Treads Light Treads Leg Enhanced Flexi-carbon Leg Flight Unit Electron Diverter Utility Advanced Melee Analysis Suite Device Nanoactuators Storage High-capacity Storage Unit Processor Advanced Melee Analysis Suite Hackware Advanced System Shield Protection Centrium Medium Armor Plating Weapon Ripper Energy Gun Enhanced Quantum Rifle Energy Cannon Compact HERF Cannon Ballistic Gun Light Assault Rifle Ballistic Cannon Bore Cannon Launcher Heavy Rocket Launcher Special Weapon Advanced Remote Datajack Impact Weapon Powered Hammer Slashing Weapon Ripper Piercing Weapon Spear Special Melee Weapon Datajack Build | -11 -10 -10 -10 -9 -8 -7 -7 -7 -7 -6 -6 -6 -6 -6 -5 -5 -5 -4 -4 -4 -4 -3 -3 -2 -2 -1 ------- Run | Yrd Mat Min Exi Min Mat Fac Low Low Dat Pro Fac Ext Cet Arc Fac Upp Upp Fac Upp Upp War Pro Res Res Qua Acc Slots Evolved 18 | . . . . . 4 2 . . . . 2 . . . 2 . . 2 . . . . 2 2 . 2 Power 2 | . . . . . . . . . . . 1 . . . . . . . . . . . . 1 . . Propulsion 4 | . . . . . 2 . . . . . 1 . . . . . . . . . . . . . . 1 Utility 10 | . . . . . 2 1 . . . . . . . . 2 . . 2 . . . . 1 1 . 1 Weapon 2 | . . . . . . 1 . . . . . . . . . . . . . . . . 1 . . . Parts Attached 261 | 8 6 1 . 1 23 16 4 1 . 12 12 19 10 5 8 . . 19 6 . 11 1 7 20 19 52 Power 43 | 2 1 . . . 2 1 . . . 1 3 1 1 1 3 . . 4 1 . 1 . . 6 1 14 Engine 11 | 2 1 . . . 2 1 . . . 1 2 1 . . 1 . . . . . . . . . . . Core 4 | . . . . . . . . . . . 1 . . 1 2 . . . . . . . . . . . Reactor 28 | . . . . . . . . . . . . . 1 . . . . 4 1 . 1 . . 6 1 14 Propulsion 76 | 2 1 . . . 8 4 1 . . 5 7 8 4 2 2 . . 5 1 . 1 . 2 6 6 11 Treads 12 | 2 1 . . . 8 . . . . 1 . . . . . . . . . . . . . . . . Leg 63 | . . . . . . 4 1 . . 4 7 8 4 2 2 . . 5 1 . 1 . 1 6 6 11 Wheel . | . . . . . . . . . . . . . . . . . . . . . . . . . . . Hover . | . . . . . . . . . . . . . . . . . . . . . . . . . . . Flight 1 | . . . . . . . . . . . . . . . . . . . . . . . 1 . . . Utility 94 | 2 1 1 . . 8 7 1 1 . 4 . 7 4 2 3 . . 8 4 . 5 . 4 6 7 19 Device 47 | 1 . 1 . . 1 4 1 . . 2 . 2 . 2 3 . . 5 1 . 2 . 2 5 3 12 Storage 7 | 1 1 . . . . 1 . . . . . 1 . . . . . 1 . . . . 1 . . 1 Processor 16 | . . . . . . 2 . 1 . . . 2 1 . . . . 1 . . 2 . . 1 3 3 Hackware 2 | . . . . . . . . . . . . . . . . . . 1 . . . . . . . 1 Protection 22 | . . . . . 7 . . . . 2 . 2 3 . . . . . 3 . 1 . 1 . 1 2 Artifact . | . . . . . . . . . . . . . . . . . . . . . . . . . . . Weapon 48 | 2 3 . . 1 5 4 2 . . 2 2 3 1 . . . . 2 . . 4 1 1 2 5 8 Energy Gun 5 | 1 1 . . . 1 . . . . . . . . . . . . . . . 1 . . . . 1 Energy Cannon 7 | . . . . . . 1 . . . 1 1 . . . . . . . . . 1 . . . 1 2 Ballistic Gun 7 | 1 1 . . 1 2 1 . . . . . . . . . . . . . . . . . . . 1 Ballistic Cannon 1 | . . . . . . . . . . . . 1 . . . . . . . . . . . . . . Launcher 6 | . . . . . 1 1 . . . . . . . . . . . . . . 2 . . . 2 . Special Weapon 2 | . . . . . . . . . . 1 . . . . . . . . . . . . . 1 . . Impact Weapon 1 | . . . . . . . 1 . . . . . . . . . . . . . . . . . . . Slashing Weapon 15 | . . . . . 1 1 1 . . . 1 2 1 . . . . . . . . . 1 1 2 4 Piercing Weapon 3 | . . . . . . . . . . . . . . . . . . 2 . . . 1 . . . . Special Melee Weapon 1 | . 1 . . . . . . . . . . . . . . . . . . . . . . . . . Unidentified Prototypes 30 | . . 1 . . 2 2 . 1 . 1 . . 1 . . . . 1 . . 8 . 1 6 4 2 Corrupted Parts 4 | . . . . . . . . . . 1 . . . . . . . 1 . . . . . . 2 . System Corruption 23 | . . . . . . . . . . 11 . . . . . . . 3 . . . . . . 9 . Parts Lost 80 | . 2 1 . . 2 . 1 . . 8 1 8 1 . 1 . 1 11 1 . . 1 1 . 6 34 Power 18 | . 1 . . . 1 . . . . 1 1 1 . . 1 . . 2 1 . . . . . 1 8 Propulsion 19 | . . . . . . . 1 . . 5 . 1 . . . . . 2 . . . . . . . 10 Utility 35 | . . 1 . . 1 . . . . 2 . 5 . . . . 1 7 . . . . 1 . 3 14 Weapon 8 | . 1 . . . . . . . . . . 1 1 . . . . . . . . 1 . . 2 2 Highest Loss Streak 11 | . 1 1 . . 1 . 1 . . 8 1 3 1 . 1 . 1 3 1 . . 1 1 . 2 11 To Critical Strikes 2 | . . . . . . . . . . . . 1 . . . . . . . . . . . . . 1 Average Backups 13 | 4 9 14 17 18 18 14 14 12 12 12 13 13 14 14 13 14 13 7 7 8 8 9 15 19 17 14 Power 1 | . 1 1 1 1 . . 1 1 1 1 . 1 2 1 . 1 1 . 1 1 . . . 1 2 1 Propulsion 3 | 2 4 5 5 4 3 1 2 2 2 1 1 2 3 3 4 4 4 2 2 2 1 1 4 6 4 2 Utility 5 | . 2 4 6 6 6 8 7 6 6 5 7 5 5 6 5 6 5 2 3 4 4 4 6 7 4 2 Weapon 3 | . 1 3 3 5 6 3 3 2 2 3 3 3 3 2 2 2 2 1 1 1 2 4 3 4 6 7 Tool/Special . | . . . . . . . . . . . . . . . . . . . . . . . . . . . Unused Backups 61 | . . . . 4 12 2 . . . . 5 1 1 1 2 . . 5 . 1 5 . . 9 2 11 Power 8 | . . . . . . . . . . . 1 . . 1 . . . 1 . . 1 . . 1 . 3 Propulsion 21 | . . . . 2 3 . . . . . 2 . . . 1 . . . . . 3 . . 4 1 5 Utility 19 | . . . . 1 4 1 . . . . 2 . 1 . 1 . . 3 . . 1 . . 4 1 . Weapon 9 | . . . . 1 5 1 . . . . . . . . . . . . . . . . . . . 2 Tool/Special 4 | . . . . . . . . . . . . 1 . . . . . 1 . 1 . . . . . 1 Average Slot Usage (%) 95 | . 99 98 100 100 98 91 94 99 100 78 97 99 95 99 99 100 98 98 98 93 89 89 86 90 91 91 Engine 5 | . 13 14 14 14 8 7 7 7 7 5 8 11 10 2 . . . . . . . . . . . . Reactor 3 | . . . . . . . . . . . . . 1 6 2 . . 6 10 8 4 5 4 8 7 10 Treads 8 | . 27 28 28 28 35 . . . . 1 3 . . . . . . . . . . . . . . . Leg 18 | . . . . . . 29 29 29 28 19 26 30 30 31 27 27 27 25 25 25 25 25 22 20 20 20 Device 12 | . 14 12 14 14 13 6 7 7 7 5 7 7 6 5 15 16 14 15 15 10 9 9 14 19 17 14 Storage 6 | . 14 14 14 14 9 7 7 7 7 7 6 6 6 6 5 5 5 2 5 5 5 5 4 4 4 3 Processor 13 | . . . . . . 13 15 17 21 21 18 15 18 18 16 16 16 17 20 20 20 20 18 16 22 21 Hackware 1 | . . . . . . . . . . . . . . . . . . 4 5 5 5 5 4 4 1 2 Protection 4 | . . . . . 12 8 6 6 7 4 4 6 6 6 5 5 5 8 2 5 5 5 4 3 3 1 Ballistic Gun 6 | . 23 28 28 28 16 7 4 . . . . . . . . . . . . . . . . . . . Slashing Weapon 7 | . . . . . 1 6 9 14 14 8 11 17 13 18 15 16 16 11 5 5 5 2 4 4 7 9 Piercing Weapon 2 | . . . . . . . . . . . . . . . . . . 3 10 10 9 11 8 8 5 2 Peak Build Rating 223 | 7 8 9 12 17 39 55 56 52 51 53 71 78 93 97 109 106 105 124 115 111 131 131 153 183 208 223 Average Rating 89 | 5 7 8 10 14 35 52 52 48 51 41 66 73 79 95 105 104 100 119 111 107 120 127 145 172 195 191 On Entrance 77 | . 7 8 9 12 17 37 55 47 51 51 52 65 76 93 96 103 105 101 104 111 97 131 125 151 179 208 Naked Turns . | . . . . . . . . . . . . . . . . . . . . . . . . . . . Heaviest Build 141 | 12 49 49 49 52 69 68 59 56 53 59 73 68 70 73 80 67 62 80 67 67 89 84 120 120 131 141 Greatest Support 178 | 40 40 40 40 40 88 62 67 67 67 68 101 111 124 132 132 128 128 128 125 125 139 139 139 141 144 178 Greatest Overweight (x) 4 | . 1 1 1 1 1 1 1 . . 4 . . . . . . . . . . . . . . 1 1 Average Overweight (x) . | . . 1 1 1 . . . . . . . . . . . . . . . . . . . . . . Largest Inventory Capacity 20 | 8 20 20 20 20 20 20 15 15 15 15 15 15 15 15 15 15 15 15 10 10 10 10 20 20 20 20 Average Capacity 16 | 7 16 20 20 20 20 15 15 15 15 15 15 15 15 15 15 15 15 8 10 10 10 10 18 20 20 20 Most Carried 20 | 7 13 16 20 20 20 20 15 14 12 14 15 15 15 15 15 15 15 15 10 10 10 10 20 20 20 20 Average Carried 14 | 4 9 14 17 19 19 14 14 12 12 12 13 14 14 15 14 15 14 8 9 9 9 10 15 19 19 18 Final Capacity 20 | 8 20 20 20 20 20 15 15 15 15 15 15 15 15 15 15 15 15 10 10 10 10 10 20 20 20 20 Final Carried 20 | 7 13 16 20 20 20 15 13 12 12 13 15 15 15 15 15 15 14 10 10 9 10 10 19 20 20 17 Class Distribution -------------------- 54% | Scavenger-Gladiator 30% | Mutant 7% | Assassin 3% | Gladiator Dominant Class ---------------- Mutant | -10/Materials Mutant | -10/Mines Mutant | -10/Exiles Mutant | -9/Mines Mutant | -8/Materials Assassin | -7/Factory Assassin | -7/Lower Caves Assassin | -7/Lower Caves Gladiator | -7/Data Miner Gladiator | -6/Proximity Caves Scavenger-Gladiator | -6/Factory Scavenger-Gladiator | -6/Extension Scavenger-Gladiator | -6/Cetus Scavenger-Gladiator | -6/Archives Scavenger-Gladiator | -5/Factory Scavenger-Gladiator | -5/Upper Caves Scavenger-Gladiator | -5/Upper Caves Scavenger-Gladiator | -4/Factory Scavenger-Gladiator | -4/Upper Caves Scavenger-Gladiator | -4/Upper Caves Scavenger-Gladiator | -4/Warlord Scavenger-Gladiator | -3/Proximity Caves Scavenger-Gladiator | -3/Research Scavenger-Gladiator | -2/Research Scavenger-Gladiator | -2/Quarantine Scavenger-Gladiator | -1/Access Resources | -11 -10 -10 -10 -9 -8 -7 -7 -7 -7 -6 -6 -6 -6 -6 -5 -5 -5 -4 -4 -4 -4 -3 -3 -2 -2 -1 ----------- Run | Yrd Mat Min Exi Min Mat Fac Low Low Dat Pro Fac Ext Cet Arc Fac Upp Upp Fac Upp Upp War Pro Res Res Qua Acc Matter Collected 7407 | 293 261 73 . 10 1010 474 128 155 . 475 325 423 219 90 165 145 51 376 138 45 328 79 140 320 350 1334 Remotely . | . . . . . . . . . . . . . . . . . . . . . . . . . . . Salvage Created 20021 | 132 563 13 . 17 1539 1347 216 42 . 274 845 1599 . 238 543 106 117 2469 507 21 236 199 230 525 1330 6913 Parts 970 | 9 39 1 . 2 102 62 10 4 . 9 35 67 . 12 31 8 8 103 28 4 6 14 9 19 67 321 Haulers Intercepted 12 | . 2 . . . 4 4 . . . . 1 . . . . . . . . . . . . . . 1 Recyclers Shooed 4 | . 2 . . . . . . . . . . . . . . . . 1 . . . . . . . 1 Parts Field Recycled . | . . . . . . . . . . . . . . . . . . . . . . . . . . . Retrieved Matter . | . . . . . . . . . . . . . . . . . . . . . . . . . . . Parts Self-Destructed 68 | . . . . . . . 5 3 . 5 . . . . . 10 8 . 23 . . 14 . . . . Prevented 2 | . . . . . . . . . . 2 . . . . . . . . . . . . . . . . Kills | -11 -10 -10 -10 -9 -8 -7 -7 -7 -7 -6 -6 -6 -6 -6 -5 -5 -5 -4 -4 -4 -4 -3 -3 -2 -2 -1 ------- Run | Yrd Mat Min Exi Min Mat Fac Low Low Dat Pro Fac Ext Cet Arc Fac Upp Upp Fac Upp Upp War Pro Res Res Qua Acc Combat Hostiles Destroyed 313 | . 11 1 . . 30 21 6 4 . 8 9 22 . 2 4 2 5 36 9 1 7 6 3 8 20 98 Melee 196 | . . . . . . 3 1 . . 1 9 20 . 2 3 2 5 36 9 1 . 2 3 8 20 71 Guns 54 | . 11 1 . . 25 13 1 . . . . . . . . . . . . . . . . . . 3 Cannons 6 | . . . . . . . . . . . . . . . . . . . . . . . . . . 6 AOE 54 | . . . . . 5 5 3 4 . 5 . 2 . . 1 . . . . . 7 4 . . . 18 Classes Destroyed 24 | 2 5 . . 1 4 2 2 . . . . 1 . . . . . . . 1 1 . . 1 1 3 Worker 14 | . . . . 1 1 4 . . . . . . . . 3 . . 1 . . . . . 1 . 3 Builder 3 | . . . . . 1 1 . . . . . 1 . . . . . . . . . . . . . . Tunneler 9 | 2 . . . . 1 2 . . . . 2 . . . . . . . . . . . . . . 2 Hauler 12 | . 2 . . . 4 4 . . . . 1 . . . . . . . . . . . . . . 1 Recycler 16 | 1 . . . . . . . . . . 1 2 . . 2 . . 3 . . . . . . . 7 Mechanic 1 | . . . . . . . . . . . . . . . . . . . . . . . . . . 1 Operator 6 | . 2 . . . 1 . . . . . . 1 . 2 . . . . . . . . . . . . Watcher 13 | . 2 . . . 3 1 . . . . . 3 . . . . . 1 . . . . . . . 3 Swarmer 82 | . 3 1 . . 10 4 . 4 . . . 3 . . . . 5 10 4 . . 5 . . 4 29 Saboteur 1 | . . . . . . . . . . . . . . . . . . . . . . . . . . 1 Grunt 102 | . 8 . . . 10 7 5 . . 5 6 6 . . . . . 14 2 . 5 1 1 . 4 28 Brawler 5 | . . . . . . 1 . . . 1 . . . . . . . . . . 1 . . . . 2 Duelist 10 | . . . . . . . 1 . . . 1 . . . . . . 3 1 . . . . . . 4 Protector 1 | . . . . . . . . . . . . . . . . . . . . . . . . . . 1 Sentry 33 | . . . . . 7 3 . . . . 1 11 . 2 . . . 1 . . . . . 1 . 7 Hunter 24 | . . . . . 2 2 . . . 1 . 1 . . 2 . . . 2 . . . 2 5 5 2 Programmer 48 | . . . . . . 4 . . . 1 1 . . . 2 2 . 8 . . . . . . 6 24 Heavy 1 | . . . . . 1 . . . . . . . . . . . . . . . . . . . . . Behemoth 1 | . . . . . . . . . . . . 1 . . . . . . . . . . . . . . Enhanced Grunt 1 | . . . . . . . . . . 1 . . . . . . . . . . . . . . . . Striker 2 | . . . . . . . . . . . . . . . . . . . . . . . . 2 . . Executioner 1 | . . . . . . . . . . . . . . . . . . . . . 1 . . . . . Alpha 7 1 | . . . . . . . . . . . . . . . . . . . . . . . . . 1 . Decomposer 2 | . . . . . . . . 1 . . . . . . . . . . 1 . . . . . . . Samaritan 1 | . . . . . . . 1 . . . . . . . . . . . . . . . . . . . Master Thief 1 | . . . . . . . . . . . . . . . . . . . . 1 . . . . . . Best Kill Streak 11 | 2 4 1 . 1 5 6 4 4 . 3 3 3 . 1 3 2 5 4 4 1 6 4 1 2 5 11 Combat Bots Only 10 | . 3 1 . . 4 6 4 4 . 3 3 3 . 1 2 2 5 4 4 1 6 4 1 2 5 10 Max Kills in Single Turn 5 | 1 1 1 . 1 3 4 2 2 . 1 1 2 . 1 1 1 1 2 1 1 2 4 1 1 2 5 Gunslinging . | . . . . . . . . . . . . . . . . . . . . . . . . . . . Exploded 4 | . . . . . 3 4 2 2 . 1 . 2 . . 1 . . . . . 2 4 . . . 4 Melee 2 | . . . . . . 1 1 . . 1 1 1 . 1 1 1 1 2 1 1 . 1 1 1 2 2 Uniques/NPCs Destroyed . | . . . . . . . . . . . . . . . . . . . . . . . . . . . Combat | -11 -10 -10 -10 -9 -8 -7 -7 -7 -7 -6 -6 -6 -6 -6 -5 -5 -5 -4 -4 -4 -4 -3 -3 -2 -2 -1 -------- Run | Yrd Mat Min Exi Min Mat Fac Low Low Dat Pro Fac Ext Cet Arc Fac Upp Upp Fac Upp Upp War Pro Res Res Qua Acc Hostile Shots Fired 2181 | . 96 . . . 138 122 18 7 . 167 65 282 12 21 55 8 18 202 42 9 24 20 30 44 146 655 Missed 782 | . 41 . . . 42 40 5 3 . 56 23 112 5 7 18 . 6 59 13 3 11 8 15 18 75 222 Hits 1399 | . 55 . . . 96 82 13 4 . 111 42 170 7 14 37 8 12 143 29 6 13 12 15 26 71 433 Melee 52 | . . . . . . . . . . 2 1 . . . . . . 14 1 6 1 . . 3 . 24 Projectile 1347 | . 55 . . . 96 82 13 4 . 109 41 170 7 14 37 8 12 129 28 . 12 12 15 23 71 409 AOE 2 | . . . . . . . . . . . . . . . . . . . . . 2 . . . . . Critical Strikes 54 | . 2 . . . 4 2 . . . . 3 5 . 1 1 2 . 4 . . 1 . . 2 3 24 Part Disruptions 4 | . . . . . . . . . . . . . . . . . . . . . . . . . 1 3 Damage Taken 23939 | . 655 10 . . 1241 738 210 57 . 1648 650 2028 171 362 508 119 174 2981 471 17 528 255 454 740 1451 8471 Core 2356 | . 114 10 . . 89 150 . . . 345 72 190 18 68 81 . 15 345 57 8 27 . 21 51 66 629 Absorbed by Shields 4106 | . . . . . 197 179 43 9 . 101 183 163 38 . 176 44 13 . . . 142 . 7 . 165 2646 Regen/Repaired (Parts) 985 | . 162 . . . 36 . . . . . . . . . . . . . . . 214 . . 166 301 106 Core Remaining (%) 72 | 100 . . . 50 83 . . . . 29 . . . 59 . . 90 . . . . 62 98 . 91 60 Volleys Fired 319 | 13 69 3 . . 98 1 4 4 . 18 16 14 6 . 8 . . . . . 9 1 1 3 3 48 Largest 2 | 2 2 1 . . 2 1 1 1 . 1 1 1 1 . 1 . . . . . 1 1 1 1 1 2 Hottest 194 | 60 60 20 . . 53 39 39 39 . 90 90 48 39 . 35 . . . . . 39 39 100 10 100 194 Shots Fired 616 | 26 138 3 . . 189 97 10 4 . 17 16 14 6 . 8 . . . . . 9 1 1 3 3 71 Gun 499 | 26 138 3 . . 188 96 6 . . . . . . . . . . . . . . . . . . 42 Cannon 60 | . . . . . . . . . . 5 16 13 . . 8 . . . . . . . 1 . 3 14 Launcher 54 | . . . . . 1 1 4 4 . 12 . 1 6 . . . . . . . 9 1 . . . 15 Special 3 | . . . . . . . . . . . . . . . . . . . . . . . . 3 . . Kinetic 449 | 13 107 3 . . 188 96 6 . . . . 13 . . . . . . . . . . . . . 23 Thermal 62 | 13 . . . . . . . . . 5 16 . . . 8 . . . . . . . . . . 20 Explosive 53 | . . . . . 1 1 4 4 . 12 . 1 6 . . . . . . . 9 1 . . . 14 Electromagnetic 35 | . 31 . . . . . . . . . . . . . . . . . . . . . . . . 4 Entropic 14 | . . . . . . . . . . . . . . . . . . . . . . . 1 . 3 10 Robot Hit Streak 28 | 7 10 1 . . 14 28 11 3 . 4 . 5 1 . . . . . . . . . . 2 . 8 Robot Miss Streak 5 | 2 4 5 . . 2 3 1 . . 2 . 2 2 . . . . . . . 2 . . 3 . 4 Penetration Max 1 | . . . . . 1 . . . . . . 1 . . . . . . . . . . . . . 1 Secondary Targets 4 | . 2 . . . 1 . . . . . . . . . . . . . . . . . . . . 1 Max Gunslinging Chain 1 | . 1 . . . 1 . . . . . . . . . . . . . . . . . . . . 1 Autonomous 103 | . . . . . . 96 7 . . . . . . . . . . . . . . . . . . . Shots Hit Robots 1170 | 17 87 1 . . 136 113 15 2 . 24 42 107 1 15 23 4 6 131 32 5 2 4 12 40 67 284 Core Hits 644 | 6 33 1 . 1 69 38 11 8 . 21 20 52 8 6 11 2 5 62 14 3 38 8 6 17 32 172 Critical Kills 2 | . . . . . . . . . . . . 1 . . . . . . . . . . . . . 1 Critical Parts Destroyed 8 | . . . . . . . . . . 2 . 5 . . . . . . . . . . . . . 1 Critical Strikes 155 | . . . . . . 5 1 . . 2 5 27 . 3 3 . . 21 5 1 1 . 5 9 12 55 Destroy 10 | . . . . . . . . . . . . 8 . . . . . . . . . . . . . 2 Smash 2 | . . . . . . . . . . 2 . . . . . . . . . . . . . . . . Sever 107 | . . . . . . 5 1 . . . 5 19 . 3 3 . . 7 . . 1 . 3 5 9 46 Impale 32 | . . . . . . . . . . . . . . . . . . 14 5 1 . . 2 4 3 3 Sunder 4 | . . . . . . . . . . . . . . . . . . . . . . . . . . 4 Melee Attacks 1064 | . 1 . . . 6 42 9 3 . 20 60 115 . 15 50 8 9 175 37 8 2 5 19 47 101 332 Impact 18 | . . . . . . . 1 . . 12 5 . . . . . . . . . . . . . . . Slashing 800 | . . . . . 6 42 8 3 . 8 55 115 . 15 50 8 9 81 6 3 1 . 11 18 55 306 Piercing 245 | . . . . . . . . . . . . . . . . . . 94 31 5 1 5 8 29 46 26 Sneak Attacks 59 | . 1 . . . 2 12 1 1 . 5 6 3 . 2 5 . . 9 1 . . . . 1 1 9 Combat Hostiles 4 | . . . . . . 1 . . . . . . . . . . . 2 . . . . . . 1 . Follow-up Attacks 215 | . . . . . . . 1 . . 1 8 33 . 2 5 . 1 30 12 1 1 . 5 13 24 78 Damage Inflicted 54385 | 159 1079 43 . 23 2861 4665 975 454 . 2247 1906 4566 301 748 1127 163 233 4911 1041 180 1993 429 535 1529 3546 18671 Guns 7305 | 159 1030 29 . . 2411 2752 216 . . . . . . . . . . . . . . . . . . 708 Cannons 1032 | . . . . . . . . . . 87 . 290 . . . . . . . . . . . . . 655 Explosions 10208 | . 38 . . . 305 366 487 365 . 1287 . 218 301 . . . . . . . 1924 278 . . . 4639 Melee 35777 | . . . . . 141 1547 272 89 . 873 1906 4052 . 748 1127 163 228 4911 1041 180 69 151 535 1529 3546 12669 Ramming 63 | . 11 14 . 23 4 . . . . . . 6 . . . . 5 . . . . . . . . . Kinetic 6839 | 58 725 29 . . 2411 2752 216 . . . . 290 . . . . . . . . . . . . . 358 Thermal 2561 | 101 38 . . . 21 126 . . . 87 . . . . . . . . . . . . . . . 2188 Explosive 8051 | . . . . . 150 240 487 365 . 1287 . 218 301 . . . . . . . 1924 278 . . . 2801 Electromagnetic 545 | . 305 . . . 134 . . . . . . . . . . . . . . . . . . . . 106 Impact 570 | . . . . . . . 42 . . 387 141 . . . . . . . . . . . . . . . Slashing 29484 | . . . . . 141 1547 230 89 . 486 1765 4052 . 748 1127 163 228 2682 178 44 43 . 323 824 2564 12250 Piercing 5723 | . . . . . . . . . . . . . . . . . . 2229 863 136 26 151 212 705 982 419 Entropic 549 | . . . . . . . . . . . . . . . . . . . . . . . . . . 549 Highest Corruption 27 | . . . . . . 6 6 6 6 17 . 1 1 1 . 4 4 10 10 10 10 . . . 11 27 Average Corruption 6 | . . . . . . 5 6 6 6 8 . 1 1 1 . 3 4 3 10 10 10 . . . 2 8 Corruption Purged 8 | . . . . . . . . . . . . . . 1 . . . . . . . . . . . 7 Corruption Blocked . | . . . . . . . . . . . . . . . . . . . . . . . . . . . Effects 267 | . . . . . . 36 20 21 3 24 . . 2 . . 6 1 32 24 12 1 . . . 4 81 Message Errors 73 | . . . . . . 10 7 7 1 4 . . . . . . . 5 8 3 1 . . . 1 26 Matter Fused 57 | . . . . . . 9 3 4 1 5 . . . . . 2 . 4 4 4 . . . . . 21 Heat Flow Errors 43 | . . . . . . 4 3 4 . 3 . . 1 . . 2 . 9 4 1 . . . . . 12 Energy Discharges 32 | . . . . . . 7 2 3 1 2 . . . . . 2 . 3 4 1 . . . . . 7 Parts Rejected 7 | . . . . . . 1 . . . 3 . . . . . . . 1 1 . . . . . . 1 Parts Fused 3 | . . . . . . . 1 . . 1 . . . . . . . . . . . . . . . 1 Data Loss (minor) 27 | . . . . . . 3 2 2 . 2 . . 1 . . . 1 5 1 3 . . . . 1 6 Data Loss (major) 12 | . . . . . . 1 2 1 . . . . . . . . . 3 . . . . . . 2 3 Alerts 8 | . . . . . . 1 . . . 3 . . . . . . . 2 2 . . . . . . . Misdirections 3 | . . . . . . . . . . . . . . . . . . . . . . . . . . 3 Weapon Failures 2 | . . . . . . . . . . 1 . . . . . . . . . . . . . . . 1 Overload Shots 2 | . . . . . . . . . . 1 1 . . . . . . . . . . . . . . . Overflow Damage 2884 | . . . . . . 346 34 115 . 245 139 88 6 151 46 . . 169 79 . 4 12 38 46 162 1204 Projectiles . | . . . . . . . . . . . . . . . . . . . . . . . . . . . Explosions 881 | . . . . . . 154 . 41 . 63 . 53 6 . . . . . . . 4 12 . . . 548 Melee 2003 | . . . . . . 192 34 74 . 182 139 35 . 151 46 . . 169 79 . . . 38 46 162 656 Knockbacks 4 | . . 1 . . . . . . . 2 . 1 . . . . . . . . . . . . . . Impact 3 | . . 1 . . . . . . . 2 . . . . . . . . . . . . . . . . Kinetic 1 | . . . . . . . . . . . . 1 . . . . . . . . . . . . . . Secondary . | . . . . . . . . . . . . . . . . . . . . . . . . . . . Self-Inflicted Damage 921 | . . . . . 68 . 34 . . 31 . . . . . . . . . . . . . . . 788 Shots 8 | . . . . . 3 . 1 . . 1 . . . . . . . . . . . . . . . 3 Rammed 11 | . 4 1 . 4 2 . . . . . . . . . . . . . . . . . . . . . Targets Rammed 13 | . 4 1 . 4 2 . . . . . . 1 . . . . 1 . . . . . . . . . Kicked 2 | . . . . . . . . . . . . 1 . . . . 1 . . . . . . . . . Crushed . | . . . . . . . . . . . . . . . . . . . . . . . . . . . Highest Temperature 361 | 40 114 . . . 190 253 177 205 . 249 32 52 144 . . 224 . 257 234 250 13 6 52 . 15 361 Average Temperature 66 | 21 41 . . . 28 101 65 89 . 91 11 21 71 . . 115 . 96 101 128 9 6 29 . 8 89 Received Heat Transfer 3280 | . 333 6 . . 429 180 90 . . 120 233 557 43 72 18 . . 228 75 . 46 21 51 9 78 691 Effects 7 | . . . . . . 2 . . . . . . . . . 2 . 1 . . . . . . . 2 Shutdowns 2 | . . . . . . . . . . . . . . . . . . . . . . . . . . 2 Energy Bleed 1 | . . . . . . . . . . . . . . . . . . 1 . . . . . . . . Interference 4 | . . . . . . 2 . . . . . . . . . 2 . . . . . . . . . . Siege Activations . | . . . . . . . . . . . . . . . . . . . . . . . . . . . Martial Activations . | . . . . . . . . . . . . . . . . . . . . . . . . . . . Shielding Activations . | . . . . . . . . . . . . . . . . . . . . . . . . . . . Robots Disrupted . | . . . . . . . . . . . . . . . . . . . . . . . . . . . Combat Hostiles . | . . . . . . . . . . . . . . . . . . . . . . . . . . . Robots Corrupted 3 | . . . . . . . 1 . . 2 . . . . . . . . . . . . . . . . Combat Hostiles 3 | . . . . . . . 1 . . 2 . . . . . . . . . . . . . . . . Parts Fried 3 | . . . . . . . . . . 1 . 1 . . . . . . . . . . . . . 1 Impact Corruptions 4 | . . . . . . . 1 . . 3 . . . . . . . . . . . . . . . . Robots Melted . | . . . . . . . . . . . . . . . . . . . . . . . . . . . Combat Hostiles . | . . . . . . . . . . . . . . . . . . . . . . . . . . . Parts Melted 1 | . . 1 . . . . . . . . . . . . . . . . . . . . . . . . Heat Transferred 943 | 225 100 . . . 50 50 . . . 111 . . . . . . . . . . . . . . . 407 Parts Sabotaged 4 | . . . . . . . . . . . . . . . . . . . . . 1 . . . . 3 Parts Stolen 4 | . . . . . . . . . . . . . . . . . . . . 4 . . . . . . Parts Stripped . | . . . . . . . . . . . . . . . . . . . . . . . . . . . Power Chain Reactions 2 | . 1 . . . 1 . . . . . . . . . . . . . . . . . . . . . Alert | -11 -10 -10 -10 -9 -8 -7 -7 -7 -7 -6 -6 -6 -6 -6 -5 -5 -5 -4 -4 -4 -4 -3 -3 -2 -2 -1 ------- Run | Yrd Mat Min Exi Min Mat Fac Low Low Dat Pro Fac Ext Cet Arc Fac Upp Upp Fac Upp Upp War Pro Res Res Qua Acc Maximum Alert Level 5 | . . . . . 1 2 . . . . . 1 1 . . . . 2 . . . . . . 1 5 Low Security (%) 72 | 100 100 100 . 100 43 22 . . . . 100 98 83 100 100 . . 77 . . . . 100 100 95 8 Level 1 13 | . . . . . 56 55 . . . . . 1 16 . . . . 12 . . . . . . 4 4 Level 2 6 | . . . . . . 22 . . . . . . . . . . . 9 . . . . . . . 26 Level 3 2 | . . . . . . . . . . . . . . . . . . . . . . . . . . 20 Level 4 2 | . . . . . . . . . . . . . . . . . . . . . . . . . . 18 Level 5 2 | . . . . . . . . . . . . . . . . . . . . . . . . . . 18 High Security . | . . . . . . . . . . . . . . . . . . . . . . . . . . 4 Max Security . | . . . . . . . . . . . . . . . . . . . . . . . . . . . Peak Influence 3004 | 5 73 73 . 59 393 465 . . . . 93 204 218 35 56 . . 547 . . . . 55 90 208 3004 Initial 164 | . . . . . 3 164 . . . . 31 12 108 24 . . . 44 . . . . 55 . 21 88 Average 214 | . 13 6 . 5 231 270 . . . . 27 40 142 12 8 . . 107 . . . . 4 16 122 1036 Influence Increases 11371 | 15 387 81 . 64 1022 863 160 90 . 267 308 874 357 127 189 50 110 1037 225 . 155 145 64 241 586 3954 Destroy 0b10 Robot/C 6700 | . 220 60 . 40 600 460 120 80 . 180 180 580 160 80 80 40 100 720 180 . 140 120 60 160 400 1940 Destroy 0b10 Robot/NC 390 | 15 30 . . 5 55 65 . . . . 20 35 10 10 25 . . 25 . . . . . 5 . 90 Destroy Leader 1160 | . 68 10 . . 174 130 10 10 . 50 32 66 . . 20 10 10 102 30 . . 10 . 40 50 338 Allied During Kill 286 | . . 11 . 4 . 11 . . . 7 . 120 123 7 . . . 3 . . . . . . . . Successful Hack 216 | . 36 . . . 50 28 . . . . 12 14 25 . 26 . . 15 . . . . . . 10 . Select Force Hacks 30 | . 30 . . . . . . . . . . . . . . . . . . . . . . . . . Disable Machine 420 | . . . . . 60 90 . . . . 15 . . 15 . . . 45 . . . . . . 90 105 Destroy Structure 1389 | . 3 . . . 23 64 . . . . 19 14 39 . 38 . . 22 . . . . 4 6 21 1136 Partial Spotted 30 | . . . . . . . . . . . 15 . . 15 . . . . . . . . . . . . Lose Combat Pursuer 750 | . . . . 15 60 15 30 . . 30 15 45 . . . . . 105 15 . 15 15 . 30 15 345 Influence Decreases 8367 | 15 387 81 . 53 670 764 554 158 . 216 333 707 489 188 189 50 40 584 474 223 191 77 147 203 475 1099 Entered New Map 994 | . . . . . 8 199 172 14 . . 20 14 85 37 . . . 26 194 53 51 15 28 . 17 61 Time Decay 6218 | 15 367 81 . 53 652 565 352 144 . 156 303 454 214 105 179 50 30 448 270 170 140 52 119 203 398 698 Lost Part 696 | . 20 . . . 10 . 10 . . 60 10 56 10 . 10 . . 90 10 . . 10 . . 60 340 Lost Ally 459 | . . . . . . . 20 . . . . 183 180 46 . . 10 20 . . . . . . . . Squads Dispatched 73 | . 4 . . 1 5 8 . . . . 2 3 . . 4 . . 9 . . . . 7 1 7 22 Investigation 12 | . 2 . . 1 2 2 . . . . . . . . . . . 2 . . . . 2 . 1 . Extermination 23 | . . . . . . 5 . . . . 2 . . . 2 . . 4 . . . . . . 3 7 Reinforcement 23 | . 2 . . . 3 1 . . . . . 3 . . 2 . . 2 . . . . 5 1 3 1 Assault 11 | . . . . . . . . . . . . . . . . . . . . . . . . . . 11 Garrison 4 | . . . . . . . . . . . . . . . . . . 1 . . . . . . . 3 Intercept . | . . . . . . . . . . . . . . . . . . . . . . . . . . . Searches Triggered . | . . . . . . . . . . . . . . . . . . . . . . . . . . . Data Miner Redirects 6 | . . . . . . . . . . . . . . . . . . 2 . . . . . . 1 3 Construction Impeded 2 | . . . . . . 1 . . . . . 1 . . . . . . . . . . . . . . Haulers Reinforced 4 | . . . . . . . . . . . . . . . . . . 1 . . . . 2 . . 1 Active Scanning Responses . | . . . . . . . . . . . . . . . . . . . . . . . . . . . Cargo Convoy Interrupts . | . . . . . . . . . . . . . . . . . . . . . . . . . . . Stealth | -11 -10 -10 -10 -9 -8 -7 -7 -7 -7 -6 -6 -6 -6 -6 -5 -5 -5 -4 -4 -4 -4 -3 -3 -2 -2 -1 --------- Run | Yrd Mat Min Exi Min Mat Fac Low Low Dat Pro Fac Ext Cet Arc Fac Upp Upp Fac Upp Upp War Pro Res Res Qua Acc Distress Signals 30 | . 1 . . . 5 1 . . . . . 2 2 . . . . . . . 1 . 4 9 2 3 Communications Jammed 3 | . . . . . . 3 . . . . . . . . . . . . . . . . . . . . Distress Signals . | . . . . . . . . . . . . . . . . . . . . . . . . . . . Times Spotted 495 | . 20 3 . 1 40 26 8 4 . 11 13 38 9 7 10 2 5 53 9 4 47 5 12 11 23 134 Peak Tracking Total 13 | . 5 3 . 3 4 6 4 4 . 6 4 4 5 2 2 2 5 5 4 4 13 5 5 2 6 12 Tactical Retreats 35 | . . . . 1 2 1 2 . . 1 1 3 . . . . . 5 1 . 1 1 . 1 1 14 Traps | -11 -10 -10 -10 -9 -8 -7 -7 -7 -7 -6 -6 -6 -6 -6 -5 -5 -5 -4 -4 -4 -4 -3 -3 -2 -2 -1 ------- Run | Yrd Mat Min Exi Min Mat Fac Low Low Dat Pro Fac Ext Cet Arc Fac Upp Upp Fac Upp Upp War Pro Res Res Qua Acc Traps Triggered 15 | . 3 . . . . 5 . . . . 2 3 . . . . . 2 . . . . . . . . Indirectly . | . . . . . . . . . . . . . . . . . . . . . . . . . . . Trap Hack Attempts 86 | . 86 . . . . . . . . . . . . . . . . . . . . . . . . . Triggered . | . . . . . . . . . . . . . . . . . . . . . . . . . . . Disarmed 5 | . 5 . . . . . . . . . . . . . . . . . . . . . . . . . Reprogrammed 6 | . 6 . . . . . . . . . . . . . . . . . . . . . . . . . Reused . | . . . . . . . . . . . . . . . . . . . . . . . . . . . Traps Extracted . | . . . . . . . . . . . . . . . . . . . . . . . . . . . Installed . | . . . . . . . . . . . . . . . . . . . . . . . . . . . Triggered . | . . . . . . . . . . . . . . . . . . . . . . . . . . . Machines | -11 -10 -10 -10 -9 -8 -7 -7 -7 -7 -6 -6 -6 -6 -6 -5 -5 -5 -4 -4 -4 -4 -3 -3 -2 -2 -1 ---------- Run | Yrd Mat Min Exi Min Mat Fac Low Low Dat Pro Fac Ext Cet Arc Fac Upp Upp Fac Upp Upp War Pro Res Res Qua Acc Machines Disabled 29 | . . . . . 4 6 . . . . 1 . . 1 . . . 3 . 1 . . . . 6 7 Max in Single Turn 3 | . . . . . 2 2 . . . . 1 . . . . . . 1 . 1 . . . . 1 3 Garrison Access 6 | . . . . . 1 1 . . . . 1 . . . . . . 1 . . . . . 2 . . Machines Repaired . | . . . . . . . . . . . . . . . . . . . . . . . . . . . Machines Dismantled . | . . . . . . . . . . . . . . . . . . . . . . . . . . . Machines Sabotaged . | . . . . . . . . . . . . . . . . . . . . . . . . . . . Overloaded Fab Kills . | . . . . . . . . . . . . . . . . . . . . . . . . . . . Hacking | -11 -10 -10 -10 -9 -8 -7 -7 -7 -7 -6 -6 -6 -6 -6 -5 -5 -5 -4 -4 -4 -4 -3 -3 -2 -2 -1 --------- Run | Yrd Mat Min Exi Min Mat Fac Low Low Dat Pro Fac Ext Cet Arc Fac Upp Upp Fac Upp Upp War Pro Res Res Qua Acc Machines Accessed 84 | . 8 . 2 1 11 11 . . 4 . 7 4 2 . 8 . . 12 1 2 1 . 1 1 6 2 Terminals 40 | . 6 . . . 9 5 . . . . 3 3 2 . 2 . . 6 . . . . . . 4 . Fabricators 4 | . . . . . . 2 . . . . . . . . 1 . . 1 . . . . . . . . Repair Stations 4 | . 1 . . . 1 . . . . . . . . . 1 . . . . . . . . . 1 . Recycling Units 14 | . 1 . . . . 2 . . . . 2 1 . . 1 . . 4 . . . . 1 1 . 1 Scanalyzers 5 | . . . . . . 1 . . . . 1 . . . 2 . . . . . . . . . 1 . Garrison Access 6 | . . . . . 1 1 . . . . 1 . . . 1 . . 1 . . . . . . . 1 Total Hacks 211 | . 26 . 2 1 29 29 . . 30 . 11 9 6 . 14 . . 32 1 2 1 . 3 1 12 2 Successful 117 | . 19 . 2 1 17 14 . . 30 . 4 3 3 . 2 . . 14 1 2 1 . . 1 3 . Failed 94 | . 7 . . . 12 15 . . . . 7 6 3 . 12 . . 18 . . . . 3 . 9 2 Catastrophic 22 | . . . . . 1 2 . . . . 1 . . . 5 . . 9 . . . . 1 . 1 2 Database Lockouts . | . . . . . . . . . . . . . . . . . . . . . . . . . . . Manual 76 | . 18 . 1 . 20 9 . . . . 3 7 1 . 4 . . 8 . . 1 . . . 4 . Terminals 113 | . 19 . . . 25 16 . . . . 5 8 6 . 4 . . 22 . . . . . . 8 . Fabricators 11 | . . . . . . 6 . . . . . . . . 1 . . 4 . . . . . . . . Repair Stations 12 | . 6 . . . 3 . . . . . . . . . 1 . . . . . . . . . 2 . Recycling Units 21 | . 1 . . . . 5 . . . . 3 1 . . 1 . . 5 . . . . 3 1 . 1 Scanalyzers 11 | . . . . . . 1 . . . . 2 . . . 6 . . . . . . . . . 2 . Garrison Access 6 | . . . . . 1 1 . . . . 1 . . . 1 . . 1 . . . . . . . 1 Terminal Hacks 64 | . 6 . 2 1 3 7 . . 30 . . . 3 . . . . 7 1 2 1 . . . 1 . Record 19 | . . . 1 . . 1 . . 11 . . . 2 . . . . 2 . 1 . . . . 1 . Part Schematic 13 | . . . . . . 1 . . 12 . . . . . . . . . . . . . . . . . Robot Schematic 4 | . . . . . . . . . 4 . . . . . . . . . . . . . . . . . Robot Analysis 4 | . 2 . . . 2 . . . . . . . . . . . . . . . . . . . . . Prototype ID Bank 5 | . 1 . . . . 1 . . 3 . . . . . . . . . . . . . . . . . Open Door 5 | . . . . 1 . . . . . . . . 1 . . . . . 1 1 1 . . . . . Branch Access Points 2 | . . . . . . 1 . . . . . . . . . . . 1 . . . . . . . . Alert Level 1 | . . . . . . . . . . . . . . . . . . 1 . . . . . . . . Unreport Threat 1 | . 1 . . . . . . . . . . . . . . . . . . . . . . . . . Disarm Traps 1 | . 1 . . . . . . . . . . . . . . . . . . . . . . . . . Maintenance Status 1 | . . . . . . . . . . . . . . . . . . 1 . . . . . . . . Hauler Manifests 4 | . 1 . . . 1 1 . . . . . . . . . . . 1 . . . . . . . . Zone Layout 3 | . . . . . . 2 . . . . . . . . . . . 1 . . . . . . . . Proto ID Catalog 1 | . . . 1 . . . . . . . . . . . . . . . . . . . . . . . Fabricator Hacks 4 | . . . . . . 2 . . . . . . . . . . . 2 . . . . . . . . Load Schematic 1 | . . . . . . . . . . . . . . . . . . 1 . . . . . . . . Build 3 | . . . . . . 2 . . . . . . . . . . . 1 . . . . . . . . Repair Station Hacks 8 | . 5 . . . 2 . . . . . . . . . . . . . . . . . . . 1 . Scan Component 5 | . 3 . . . 1 . . . . . . . . . . . . . . . . . . . 1 . Repair 3 | . 2 . . . 1 . . . . . . . . . . . . . . . . . . . . . Recycling Unit Hacks 8 | . . . . . . 2 . . . . 2 1 . . . . . 2 . . . . . 1 . . Retrieve Components 8 | . . . . . . 2 . . . . 2 1 . . . . . 2 . . . . . 1 . . Scanalyzer 2 | . . . . . . . . . . . 1 . . . 1 . . . . . . . . . . . Insert Component 2 | . . . . . . . . . . . 1 . . . 1 . . . . . . . . . . . Garrison Access Hacks 4 | . . . . . 1 1 . . . . 1 . . . . . . 1 . . . . . . . . Seal Access 4 | . . . . . 1 1 . . . . 1 . . . . . . 1 . . . . . . . . Unauthorized Hacks 27 | . 8 . . . 11 2 . . . . . 2 . . 1 . . 2 . . . . . . 1 . Terminals 26 | . 7 . . . 11 2 . . . . . 2 . . 1 . . 2 . . . . . . 1 . Assimilate 3 | . . . . . 3 . . . . . . . . . . . . . . . . . . . . . Botnet 12 | . 2 . . . 2 2 . . . . . 2 . . 1 . . 2 . . . . . . 1 . Skim 11 | . 5 . . . 6 . . . . . . . . . . . . . . . . . . . . . Fabricators . | . . . . . . . . . . . . . . . . . . . . . . . . . . . Repair Stations . | . . . . . . . . . . . . . . . . . . . . . . . . . . . Recycling Units 1 | . 1 . . . . . . . . . . . . . . . . . . . . . . . . . Tunnel 1 | . 1 . . . . . . . . . . . . . . . . . . . . . . . . . Scanalyzers . | . . . . . . . . . . . . . . . . . . . . . . . . . . . Garrison Access . | . . . . . . . . . . . . . . . . . . . . . . . . . . . Data Cores Recovered 2 | . 1 . . . 1 . . . . . . . . . . . . . . . . . . . . . Used 1 | . 1 . . . . . . . . . . . . . . . . . . . . . . . . . Hacking Detections 59 | . 7 . . . 10 8 . . . . 3 3 1 . 8 . . 10 . . . . 1 . 6 2 Full Trace Events 6 | . 2 . . . 2 . . . . . . . . . . . . 1 . . . . . . 1 . Feedback Events . | . . . . . . . . . . . . . . . . . . . . . . . . . . . Feedback Blocked . | . . . . . . . . . . . . . . . . . . . . . . . . . . . Robot Schematics Acquired 5 | . . . . . . . . . 4 . . . . . . . . . . . . . . . 1 . Robots Built 2 | . . . . . . 2 . . . . . . . . . . . . . . . . . . . . Authchips . | . . . . . . . . . . . . . . . . . . . . . . . . . . . Time 116 | . . . . . . 116 . . . . . . . . . . . . . . . . . . . . Total Robot Build Rating 6 | . . . . . . 6 . . . . . . . . . . . . . . . . . . . . Part Schematics Acquired 17 | . . . . . . 1 . . 12 . . . . . . . . . . . . . . . 4 . Parts Built 1 | . . . . . . . . . . . . . . . . . . 1 . . . . . . . . Authchips . | . . . . . . . . . . . . . . . . . . . . . . . . . . . Time 201 | . . . . . . 117 . . . . . . . . . . . 84 . . . . . . . . Total Part Build Rating 6 | . . . . . . . . . . . . . . . . . . 6 . . . . . . . . Parts Repaired 3 | . 2 . . . 1 . . . . . . . . . . . . . . . . . . . . . Time 96 | . 52 . . . 44 . . . . . . . . . . . . . . . . . . . . . Parts Recycled . | . . . . . . . . . . . . . . . . . . . . . . . . . . . Recycled Matter . | . . . . . . . . . . . . . . . . . . . . . . . . . . . Retrieved Matter . | . . . . . . . . . . . . . . . . . . . . . . . . . . . Retrieved Components 23 | . . . . . . 5 . . . . 4 10 . . . . . 3 . . . . . 1 . . Parts Scanalyzed 1 | . . . . . . . . . . . . . . . 1 . . . . . . . . . . . Part Schematics Acquired . | . . . . . . . . . . . . . . . . . . . . . . . . . . . Parts Damaged . | . . . . . . . . . . . . . . . . . . . . . . . . . . . Bothacking | -11 -10 -10 -10 -9 -8 -7 -7 -7 -7 -6 -6 -6 -6 -6 -5 -5 -5 -4 -4 -4 -4 -3 -3 -2 -2 -1 ------------ Run | Yrd Mat Min Exi Min Mat Fac Low Low Dat Pro Fac Ext Cet Arc Fac Upp Upp Fac Upp Upp War Pro Res Res Qua Acc Used RIF Installer . | . . . . . . . . . . . . . . . . . . . . . . . . . . . Robots Hacked 3 | . 1 . . . . . . . . . . . . . . . . . . . . . . 2 . . Non-combat 1 | . 1 . . . . . . . . . . . . . . . . . . . . . . . . . Combat 2 | . . . . . . . . . . . . . . . . . . . . . . . . 2 . . Robot Hacks Applied 3 | . 1 . . . . . . . . . . . . . . . . . . . . . . 2 . . parse_system 3 | . 1 . . . . . . . . . . . . . . . . . . . . . . 2 . . Relay Couplers Released 3 | . . . . . . . . . . . . . . . . . . . . . . . . 3 . . Machine Destruction 3 | . . . . . . . . . . . . . . . . . . . . . . . . 3 . . Fabnet Peak Effective % . | . . . . . . . . . . . . . . . . . . . . . . . . . . . Robots Rewired 25 | . . . . . . . . . . . . 25 . . . . . . . . . . . . . . Allies Hacked . | . . . . . . . . . . . . . . . . . . . . . . . . . . . Hacks Repelled . | . . . . . . . . . . . . . . . . . . . . . . . . . . . Allies | -11 -10 -10 -10 -9 -8 -7 -7 -7 -7 -6 -6 -6 -6 -6 -5 -5 -5 -4 -4 -4 -4 -3 -3 -2 -2 -1 -------- Run | Yrd Mat Min Exi Min Mat Fac Low Low Dat Pro Fac Ext Cet Arc Fac Upp Upp Fac Upp Upp War Pro Res Res Qua Acc Total Allies 46 | . . 5 . . . 2 . . . 1 . 33 5 . . . . . . . . . . . . . Largest Group 11 | . . 5 5 3 2 2 1 . . 1 . 10 11 4 . . . . . . . . . . . . Highest-Rated Group 774 | . . 79 79 40 24 42 21 . . 96 . 408 774 312 . . . . . . . . . . . . Highest-Rated Ally 159 | . . 31 31 16 16 21 21 . . 96 . 159 159 159 . . . . . . . . . . . . Total Orders 17 | . . . . . . . . . . . . . 2 . 3 1 2 9 . . . . . . . . STAY 3 | . . . . . . . . . . . . . . . . . . 3 . . . . . . . . ROAM 1 | . . . . . . . . . . . . . 1 . . . . . . . . . . . . . FOLLOW 1 | . . . . . . . . . . . . . 1 . . . . . . . . . . . . . EXPLORE 4 | . . . . . . . . . . . . . . . 2 1 1 . . . . . . . . . RETURN 8 | . . . . . . . . . . . . . . . 1 . 1 6 . . . . . . . . Ally Attacks 276 | . . 17 . 13 8 18 2 . . 10 . 85 70 26 . . . 27 . . . . . . . . Total Damage 6185 | . . 123 . 155 69 333 55 . . 450 . 1900 2055 564 . . . 481 . . . . . . . . Kills 31 | . . 2 . 2 . 4 . . . 1 . 8 12 2 . . . . . . . . . . . . Allies Corrupted 1 | . . . . . . . . . . . . . . . . . . 1 . . . . . . . . Allies Melted 4 | . . . . . . . . . . . . 1 . . . . . . . . 2 . . 1 . . Intel | -11 -10 -10 -10 -9 -8 -7 -7 -7 -7 -6 -6 -6 -6 -6 -5 -5 -5 -4 -4 -4 -4 -3 -3 -2 -2 -1 ------- Run | Yrd Mat Min Exi Min Mat Fac Low Low Dat Pro Fac Ext Cet Arc Fac Upp Upp Fac Upp Upp War Pro Res Res Qua Acc Active Infowar (turns) 23191 | 42 2327 1035 532 997 2728 1687 877 854 103 830 1314 171 . . 984 369 51 2038 595 312 . 483 495 1588 512 2267 Sensors 13150 | . . . . . . 896 776 845 103 481 989 75 . . 965 366 51 1739 321 198 . 483 495 1588 512 2267 Terrain 163 | . . . . . . . . . . . . . . . . . . 163 . . . . . . . . Traps 856 | . . . . . . . . . . . . . . . . . . . 544 312 . . . . . . Seismic 7821 | 42 2327 1035 532 997 2728 160 . . . . . . . . . . . . . . . . . . . . T.N.C. 5734 | . . . . . . 1602 877 854 103 830 1314 154 . . . . . . . . . . . . . . Cloaking 294 | . . . . . . . . . . . . . . . . . . . . . . . . . . 294 Jamming 1238 | . . . . . . 138 25 . . . 206 . . . 21 3 3 842 . . . . . . . . Robot Analysis Total 4 | . 2 . . . 2 . . . . . . . . . . . . . . . . . . . . . Derelict Logs Recovered 8 | . . 1 . 1 . . 1 1 . 2 . . . . . . . . . 2 . . . . . . Drone Launches 10 | . . . . . . . . . . . . . . . 2 1 1 6 . . . . . . . . Drone Recoveries 7 | . . . . . . . . . . . . . . . 2 1 . 4 . . . . . . . . Exploration | -11 -10 -10 -10 -9 -8 -7 -7 -7 -7 -6 -6 -6 -6 -6 -5 -5 -5 -4 -4 -4 -4 -3 -3 -2 -2 -1 ------------- Run | Yrd Mat Min Exi Min Mat Fac Low Low Dat Pro Fac Ext Cet Arc Fac Upp Upp Fac Upp Upp War Pro Res Res Qua Acc Turns Passed 29501 | 166 2327 1145 532 997 2728 1687 877 854 103 830 1314 1619 447 312 1043 383 76 2448 595 356 1343 554 1132 1588 949 3096 Spaces Moved 17786 | 71 932 469 220 408 1434 1181 643 650 82 510 835 794 231 143 709 276 38 1592 421 264 921 401 855 1274 591 1841 Core 2 | 2 . . . . . . . . . . . . . . . . . . . . . . . . . . Treads 3532 | 69 932 469 220 408 1434 . . . . . . . . . . . . . . . . . . . . . Legs 14252 | . . . . . . 1181 643 650 82 510 835 794 231 143 709 276 38 1592 421 264 921 401 855 1274 591 1841 Wheels . | . . . . . . . . . . . . . . . . . . . . . . . . . . . Hover . | . . . . . . . . . . . . . . . . . . . . . . . . . . . Flight . | . . . . . . . . . . . . . . . . . . . . . . . . . . . Fastest Speed 50 | 50 160 240 240 240 158 122 122 127 127 110 120 120 120 120 120 120 120 120 120 120 115 116 116 112 110 110 Average Speed 135 | 156 209 240 240 240 159 122 122 127 127 132 121 120 120 120 120 120 120 120 120 120 118 116 116 113 112 119 Slowest Speed 450 | 160 240 240 240 240 240 192 193 127 127 450 123 120 120 120 120 120 120 120 120 120 120 116 116 116 182 190 Overloaded Moves . | . . . . . . . . . . . . . . . . . . . . . . . . . . . Propulsion Burnouts . | . . . . . . . . . . . . . . . . . . . . . . . . . . . Robots Hopped . | . . . . . . . . . . . . . . . . . . . . . . . . . . . Potential Cave-ins 4 | . . . . . . . . . . . . . . . 2 . . . . . . . . 2 . . Cave-ins Triggered . | . . . . . . . . . . . . . . . . . . . . . . . . . . . Exploration Rate (%) 56 | 5 97 97 60 89 83 30 70 76 71 67 20 74 79 85 43 48 28 30 54 41 80 53 23 31 46 40 Regions Visited 26 Branch Regions 17 Pre-discovered Areas 8 | . 3 . 1 2 . . 1 . 1 . . . . . . . . . . . . . . . . . Known Exits Taken 22 | . . . . 1 1 1 1 1 1 1 1 1 1 1 1 1 1 1 1 1 1 1 1 1 1 . Unknown Exits Taken 4 | 1 1 1 1 . . . . . . . . . . . . . . . . . . . . . . . Scrap Searched 9 | . . 1 . 1 . . 1 1 . 1 . . . . . . . . 1 2 . 1 . . . . Spaces Dug 176 | . . . . . 12 6 1 14 . 2 23 15 . . 22 2 . 10 . . 2 . 4 2 4 57 Terrain Destroyed 1383 | . 3 . . . 17 73 57 39 . 144 23 16 84 . 23 2 . 10 . . 74 7 4 2 6 799 Melee 88 | . . . . . 4 6 1 2 . 1 9 . . . 15 2 . 10 . . . . 2 2 4 30 Projectile 72 | . . . . . 2 31 3 . . 1 14 1 . . 8 . . . . . . . 2 . 2 8 AOE 1223 | . 3 . . . 11 36 53 37 . 142 . 15 84 . . . . . . . 74 7 . . . 761 Terrain Rammed . | . . . . . . . . . . . . . . . . . . . . . . . . . . . Walls Destroyed . | . . . . . . . . . . . . . . . . . . . . . . . . . . . Machines Disabled . | . . . . . . . . . . . . . . . . . . . . . . . . . . . Actions | -11 -10 -10 -10 -9 -8 -7 -7 -7 -7 -6 -6 -6 -6 -6 -5 -5 -5 -4 -4 -4 -4 -3 -3 -2 -2 -1 --------- Run | Yrd Mat Min Exi Min Mat Fac Low Low Dat Pro Fac Ext Cet Arc Fac Upp Upp Fac Upp Upp War Pro Res Res Qua Acc Total 22026 | 98 1175 484 225 426 1706 1368 708 666 81 611 1029 1352 397 272 856 319 63 2056 498 295 1164 481 977 1413 840 2466 Wait 1810 | . 63 7 3 . 87 74 43 . . 27 58 125 128 100 73 30 12 263 33 22 186 67 77 24 101 207 Move 17759 | 70 931 468 219 407 1433 1180 642 649 81 509 834 793 230 142 708 275 37 1591 420 263 920 400 854 1273 590 1840 Hop . | . . . . . . . . . . . . . . . . . . . . . . . . . . . Pick Up 197 | 7 7 3 3 6 21 11 . . . 3 17 8 6 2 4 . . 20 4 1 6 . 13 17 13 25 Fast Attach 133 | 7 7 1 . . 6 10 1 1 . 7 2 6 5 2 . . . 12 4 1 14 1 1 11 8 26 Attach 107 | . 2 . . . 6 4 2 2 . 12 8 8 4 . 3 . 2 9 4 . 3 . 5 1 10 22 Detach 36 | . . . . . . . . 1 . 10 3 1 1 1 . . 1 1 2 . 6 . 2 . 2 5 Swap 279 | 1 5 1 . 1 18 25 7 6 . 7 28 12 6 5 19 8 4 18 3 2 2 6 8 17 25 45 Drop 241 | . . . . 8 29 21 1 . . . 17 12 11 7 6 . . 16 5 1 17 1 2 36 23 28 Fire 319 | 13 69 3 . . 98 1 4 4 . 18 16 14 6 . 8 . . . . . 9 1 1 3 3 48 Melee 746 | . 1 . . . 6 42 8 3 . 18 46 72 . 13 35 6 6 126 23 5 1 5 14 31 65 220 Ram . | . . . . . . . . . . . . . . . . . . . . . . . . . . . Kick 2 | . . . . . . . . . . . . 1 . . . . 1 . . . . . . . . . Crush 11 | . 4 1 . 4 2 . . . . . . . . . . . . . . . . . . . . . Escape Stasis 4 | . . . . . . . . . . . . 4 . . . . . . . . . . . . . . Rewire 296 | . . . . . . . . . . . . 296 . . . . . . . . . . . . . . Trap 86 | . 86 . . . . . . . . . . . . . . . . . . . . . . . . . Miscellaneous . | . . . . . . . . . . . . . . . . . . . . . . . . . . . Route ------- -11/Scrapyard -10/Materials (discovered 5 exits: *Mat x3 / [*Min] / *Sub) -10/Mines (discovered 4 exits: *Mat x2 / *Exi / *Sub) -10/Exiles -9/Mines (discovered 2 exits: *Mat x2) -8/Materials (discovered 4 exits: *Fac x3 / *Sto) -7/Factory (discovered 3 exits: *Fac / *Low x2) -7/Lower Caves (discovered 2 exits: *Low / *Zio) -7/Lower Caves -7/Data Miner -6/Proximity Caves -6/Factory (discovered 2 exits: Low / *Ext) -6/Extension (discovered 2 exits: *Fac / *Cet) -6/Cetus (discovered 2 exits: *Fac / *Arc) -6/Archives (discovered 2 exits: *Fac / *Hub) -5/Factory (discovered 4 exits: *Fac x2 / *Upp x2) -5/Upper Caves -5/Upper Caves -4/Factory (discovered 3 exits: *Res / *Upp x2) -4/Upper Caves -4/Upper Caves -4/Warlord -3/Proximity Caves -3/Research (discovered 3 exits: *Res x2 / *Arm) -2/Research (discovered 3 exits: *Acc x2 / *Qua) -2/Quarantine -1/Access To Epsilon Eridani History --------- Turn | Location | Event 41 | -11/Scrapyard | Discovered new exit (range 15) 167 | -11/Scrapyard | Entered Materials 301 | -10/Materials | Build established: Mutant 322 | -10/Materials | Discovered new exit (range 13) 460 | -10/Materials | Discovered new exit (range 6) 601 | -10/Materials | Repaired Lgt. Treads 693 | -10/Materials | Discovered new exit (range 5) 839 | -10/Materials | Identified exit to Materials 839 | -10/Materials | Identified exit to Subcaves 934 | -10/Materials | Loaded intel: 12 trap records 966 | -10/Materials | Learned location of Storage (-8) 989 | -10/Materials | Learned location of 2 exits from Materials 1002 | -10/Materials | Learned location of 1 exit from Recycling 2410 | -10/Materials | Repaired Lgt. Treads 2494 | -10/Materials | Entered Mines 2502 | -10/Mines | Assisted by bots powering up and referring to "LRC-V3" 2648 | -10/Mines | Learned Materials trap positions 2749 | -10/Mines | Found a damaged Exp. Sensor Array with a note attached 2754 | -10/Mines | Found Prototype Device 2757 | -10/Mines | Identified Exp. Sensor Array 2923 | -10/Mines | Deemed a non-threat by the Exiles lab entrance 2926 | -10/Mines | Discovered new exit (range 5) 3038 | -10/Mines | Found a Scrap Suit stashed away for nefarious purposes 3445 | -10/Mines | Discovered exit to Subcaves (range 6) 3639 | -10/Mines | Entered Exiles 3639 | -10/Exiles | Accompanied by 5 allies 3669 | -10/Exiles | Led the pair of lost Derelicts to a safe place 3697 | -10/Exiles | Met 8R-AWN 3733 | -10/Exiles | Met EX-HEX 3812 | -10/Exiles | Met EX-BIN 3839 | -10/Exiles | Aligned with FarCom system 3841 | -10/Exiles | Given EX-Vault access code 3896 | -10/Exiles | Opened EX-Vault 3913 | -10/Exiles | Found Supersonic Drone Bay 3921 | -10/Exiles | Found Skeleton Box 3927 | -10/Exiles | Found AWS/Gauss 3971 | -10/Exiles | Warned to stay clear of 0b10 Research branches 4043 | -10/Exiles | Met EX-DEC 4053 | -10/Exiles | Learned location of Zion (-6) 4132 | -10/Exiles | Discovered new exit (range 14) 4171 | -10/Exiles | Stole three prototypes: Skeleton Box, Supersonic Drone Bay, AWS/Gauss 4171 | -10/Exiles | Entered Mines 4171 | -9/Mines | Accompanied by 3 allies 4172 | -9/Mines | Identified exit to Materials 4208 | -9/Mines | Met a Derelict bent on vengeance 4335 | -9/Mines | A weapon hastily lodged in a ceiling crevice suddenly fell to the ground 4640 | -9/Mines | Met a Derelict shopkeep closing up shop 5168 | -9/Mines | Entered Materials 5168 | -8/Materials | Accompanied by 2 allies 5168 | -8/Materials | Evolved 4 slots: Propulsion x2, Utility x2 5169 | -8/Materials | Identified exit to Storage 5170 | -8/Materials | Identified exit to Factory 5171 | -8/Materials | Loaded intel: 13 trap records 5282 | -8/Materials | Lost 3 allies 5675 | -8/Materials | Discovered exit to Factory (range 3) 6117 | -8/Materials | Found Powered Armor 6122 | -8/Materials | Found Powered Armor 6998 | -8/Materials | Repaired Imp. Shield Generator? 7747 | -8/Materials | Found Powered Armor 7751 | -8/Materials | Found Powered Armor 7896 | -8/Materials | Entered Factory 7896 | -7/Factory | Evolved 2 slots: Utility x1, Weapon x1 7898 | -7/Factory | FarCom data flow suspended 8038 | -7/Factory | Discovered new exit (range 8) 8183 | -7/Factory | Identified exit to Factory 9008 | -7/Factory | Fabricated H-55 Commando? 9176 | -7/Factory | Identified exit to Lower Caves 9583 | -7/Factory | Entered Lower Caves 9583 | -7/Lower Caves | Accompanied by 1 ally 9629 | -7/Lower Caves | Build established: Assassin 9635 | -7/Lower Caves | A Derelict revealed a hidden shortcut to a safe place 9644 | -7/Lower Caves | Identified exit to Zion 9997 | -7/Lower Caves | Encountered a Warlord checkpoint 10172 | -7/Lower Caves | AWS/Gauss suddenly broke down 10407 | -7/Lower Caves | Discovered new exit (range 13) 10457 | -7/Lower Caves | Identified exit to Lower Caves 10460 | -7/Lower Caves | Entered another Lower Caves area 10783 | -7/Lower Caves | Encountered a Warlord checkpoint 10800 | -7/Lower Caves | Learned Factory stockpile data 10919 | -7/Lower Caves | Found Alien Artifact 10919 | -7/Lower Caves | Identified Core Expander 10919 | -7/Lower Caves | Installed Core Expander, added new Utility slot 11229 | -7/Lower Caves | Build established: Gladiator 11297 | -7/Lower Caves | Discovered new exit (range 14) 11313 | -7/Lower Caves | Identified exit to Data Miner 11314 | -7/Lower Caves | Entered Data Miner 11314 | -7/Data Miner | Discovered new exit (range 6) 11339 | -7/Data Miner | Met Data Miner 11373 | -7/Data Miner | Learned location of Section 7 (-2) 11373 | -7/Data Miner | Acquired the access code to Warlord's prototype stash 11386 | -7/Data Miner | Received God Mode back door access code from Data Miner 11416 | -7/Data Miner | Identified exit to Proximity Caves 11417 | -7/Data Miner | Entered Proximity Caves 11611 | -6/Proximity Caves | Learned location of 2 exits from Factory 11784 | -6/Proximity Caves | Spotted B-75 Beast 11939 | -6/Proximity Caves | Lost 8 parts (1p5n2u) 11952 | -6/Proximity Caves | Core integrity fell below 50% 12061 | -6/Proximity Caves | System corruption reached 10% 12092 | -6/Proximity Caves | Allies destroyed B-75 Beast 12094 | -6/Proximity Caves | Escorted by Enhanced Grunt 12175 | -6/Proximity Caves | Learned Factory stockpile data 12182 | -6/Proximity Caves | Discovered exit to Factory (range 14) 12247 | -6/Proximity Caves | Entered Factory 12247 | -6/Factory | Evolved 2 slots: Power x1, Propulsion x1 12248 | -6/Factory | Identified exit to Lower Caves 12248 | -6/Factory | Identified exit to Extension 12667 | -6/Factory | Build established: Scavenger-Gladiator 13561 | -6/Factory | Entered Extension 13746 | -6/Extension | Lost 3 parts (3u) 14037 | -6/Extension | Lost 4 allies 14257 | -6/Extension | Rescued a captive Derelict 14305 | -6/Extension | Spotted B-75 Beast 14352 | -6/Extension | Lost 9 allies 14728 | -6/Extension | Allies destroyed B-75 Beast 14731 | -6/Extension | Spotted B-75 Beast 14764 | -6/Extension | Lost 6 allies 14767 | -6/Extension | Destroyed B-75 Beast 14799 | -6/Extension | Rescued a captive Derelict 14976 | -6/Extension | Rescued A7 14993 | -6/Extension | Rescued a captive Derelict 15002 | -6/Extension | Rescued a captive Derelict 15070 | -6/Extension | Rescued a captive Derelict 15073 | -6/Extension | Rescued a captive Derelict 15099 | -6/Extension | Rescued a captive Derelict 15132 | -6/Extension | Discovered new exit (range 10) 15133 | -6/Extension | Discovered new exit (range 6) 15144 | -6/Extension | Identified exit to Cetus 15180 | -6/Extension | Entered Cetus 15180 | -6/Cetus | Accompanied by 10 allies (A7) 15185 | -6/Cetus | Acquired a Cetus Manufacturing Module code from A7 15210 | -6/Cetus | Spotted Cetus Guard 15210 | -6/Cetus | Spotted Cetus Guard 15211 | -6/Cetus | Spotted Cetus Guard 15211 | -6/Cetus | Spotted Cetus Guard 15213 | -6/Cetus | Allies destroyed Cetus Guard 15226 | -6/Cetus | Allies destroyed Cetus Guard 15227 | -6/Cetus | Allies destroyed Cetus Guard 15238 | -6/Cetus | Allies destroyed Cetus Guard 15266 | -6/Cetus | Lost 4 allies 15302 | -6/Cetus | Started Cetus Manufacturing Module 15310 | -6/Cetus | Escorted A7 to Cetus Mainframe 15327 | -6/Cetus | Manufactured an Enhanced Grunt 15352 | -6/Cetus | Manufactured an Enhanced Grunt 15377 | -6/Cetus | Manufactured an Enhanced Grunt 15402 | -6/Cetus | Manufactured an Enhanced Grunt 15427 | -6/Cetus | Manufactured an Enhanced Grunt 15430 | -6/Cetus | Discovered new exit (range 15) 15477 | -6/Cetus | Spotted Cetus Guard 15477 | -6/Cetus | Spotted Cetus Guard 15485 | -6/Cetus | Spotted Cetus Guard 15489 | -6/Cetus | Spotted Cetus Guard 15494 | -6/Cetus | Allies destroyed Cetus Guard 15497 | -6/Cetus | Allies destroyed Cetus Guard 15503 | -6/Cetus | Allies destroyed Cetus Guard 15503 | -6/Cetus | Allies destroyed Cetus Guard 15528 | -6/Cetus | Discovered new exit (range 16) 15531 | -6/Cetus | Lost 7 allies 15537 | -6/Cetus | Met Revision 17 15551 | -6/Cetus | Identified exit to Factory 15619 | -6/Cetus | Identified exit to Archives 15627 | -6/Cetus | Entered Archives 15627 | -6/Archives | Accompanied by 4 allies (A7) 15632 | -6/Archives | Received a hacking code to weaken MAIN.C 15793 | -6/Archives | Discovered new exit (range 16) 15894 | -6/Archives | Identified exit to Hub_04(d) 15921 | -6/Archives | Discovered exit to Factory (range 16) 15939 | -6/Archives | Entered Factory 15939 | -5/Factory | Evolved 2 slots: Utility x2 16448 | -5/Factory | Discovered new exit (range 57) 16449 | -5/Factory | Discovered new exit (range 103) 16694 | -5/Factory | Discovered new exit (range 6) 16700 | -5/Factory | Identified exit to Factory 16938 | -5/Factory | Discovered new exit (range 8) 16945 | -5/Factory | Identified exit to Upper Caves 16979 | -5/Factory | Spotted B-75 Beast 16982 | -5/Factory | Entered Upper Caves 17322 | -5/Upper Caves | Discovered new exit (range 15) 17339 | -5/Upper Caves | Identified exit to Upper Caves 17365 | -5/Upper Caves | Entered another Upper Caves area 17378 | -5/Upper Caves | Discovered exit to Factory (range 7) 17441 | -5/Upper Caves | Entered Factory 17441 | -4/Factory | Evolved 2 slots: Utility x2 17520 | -4/Factory | Identified exit to Upper Caves 17530 | -4/Factory | Incoming investigation squad redirected 17725 | -4/Factory | Lost 3 parts (1n2u) 18760 | -4/Factory | Discovered new exit (range 16) 18785 | -4/Factory | Identified exit to Research 19362 | -4/Factory | Incoming investigation squad redirected 19418 | -4/Factory | Fabricated Combat Drone Bay? 19584 | -4/Factory | System corruption reached 10% 19690 | -4/Factory | Lost 3 parts (1p2u) 19852 | -4/Factory | Garrison activated, responded to threat 19889 | -4/Factory | Entered Upper Caves 20213 | -4/Upper Caves | Entered a destroyed Warlord outpost 20477 | -4/Upper Caves | Discovered new exit (range 8) 20483 | -4/Upper Caves | Identified exit to Upper Caves 20484 | -4/Upper Caves | Entered another Upper Caves area 20529 | -4/Upper Caves | Learned location of 1 exit from Research 20547 | -4/Upper Caves | Learned Research emergency access door positions 20656 | -4/Upper Caves | Found Alien Artifact 20777 | -4/Upper Caves | Spotted TI-C3E(f) 20777 | -4/Upper Caves | Spotted 3H-967(f) 20778 | -4/Upper Caves | Encountered a Master Thief 20778 | -4/Upper Caves | Encountered a Master Thief 20778 | -4/Upper Caves | Spotted A9-XOI(f) 20779 | -4/Upper Caves | Encountered a Master Thief 20781 | -4/Upper Caves | Alien Artifact stolen by Master Thief 20784 | -4/Upper Caves | Spotted GR-MOK(f) 20784 | -4/Upper Caves | Lgt. Antimatter Reactor stolen by Master Thief 20785 | -4/Upper Caves | Encountered a Master Thief 20786 | -4/Upper Caves | Lgt. Antimatter Reactor stolen by Master Thief 20790 | -4/Upper Caves | Enh. Flexi-carbon Leg stolen by Master Thief 20791 | -4/Upper Caves | Destroyed GR-MOK(f) 20830 | -4/Upper Caves | Discovered new exit (range 9) 20839 | -4/Upper Caves | Identified exit to Warlord 20840 | -4/Upper Caves | Entered Warlord 20881 | -4/Warlord | System corruption cleaned by Quarantine Array 21013 | -4/Warlord | Opened Warlord's prototype stash 21016 | -4/Warlord | Found Prototype Reactor 21016 | -4/Warlord | Identified Vortex Chain Reactor 21023 | -4/Warlord | Found Prototype Processor 21023 | -4/Warlord | Identified Exp. Targeting Computer 21249 | -4/Warlord | Met Warlord 21274 | -4/Warlord | Warlord's base attacked by MAIN.C 21438 | -4/Warlord | Found Prototype Launcher 21438 | -4/Warlord | Identified Vortex Catalyst Activator 21451 | -4/Warlord | Found Prototype Energy Cannon 21451 | -4/Warlord | Identified Vortex Driver 21455 | -4/Warlord | Found Vortex Driver 21462 | -4/Warlord | Found Prototype Energy Gun 21462 | -4/Warlord | Identified Vortex Rifle 21624 | -4/Warlord | Warlord forces counterattacked 21699 | -4/Warlord | Destroyed Executioner 21705 | -4/Warlord | Spotted B-90 Cyclops 21733 | -4/Warlord | Spotted Executioner 21763 | -4/Warlord | Found Prototype Processor 21763 | -4/Warlord | Identified Exp. Core Analyzer 21764 | -4/Warlord | Discovered new exit (range 15) 21835 | -4/Warlord | Lost 15 allies 21918 | -4/Warlord | Spotted Striker 21949 | -4/Warlord | Warlord base infiltrated, sounded retreat 21956 | -4/Warlord | Spotted B-90 Cyclops 22169 | -4/Warlord | Lost 7 allies 22174 | -4/Warlord | Spotted Executioner 22174 | -4/Warlord | Spotted B-86 Titan 22174 | -4/Warlord | Spotted B-90 Cyclops 22181 | -4/Warlord | Identified exit to Proximity Caves 22183 | -4/Warlord | Entered Proximity Caves 22708 | -3/Proximity Caves | Discovered exit to Research (range 15) 22737 | -3/Proximity Caves | Entered Research 22737 | -3/Research | Evolved 2 slots: Utility x1, Weapon x1 22738 | -3/Research | Identified exit to Research 22937 | -3/Research | Revision forces began assault on 0b10 23024 | -3/Research | Met up with Revision 17++ 23059 | -3/Research | Discovered new exit (range 14) 23090 | -3/Research | Identified exit to Armory 23437 | -3/Research | Research terminal network offline 23522 | -3/Research | Lost 3 allies 23780 | -3/Research | Discovered exit to Research (range 14) 23825 | -3/Research | Spotted Striker 23869 | -3/Research | Spotted Striker 23869 | -3/Research | Entered another Research area 23869 | -2/Research | Warlord forces began assault on 0b10 23869 | -2/Research | Evolved 2 slots: Power x1, Utility x1 23899 | -2/Research | Lost 3 allies 23979 | -2/Research | Research machine network offline 24002 | -2/Research | Discovered new exit (range 5) 24007 | -2/Research | Identified exit to Quarantine 24215 | -2/Research | Met up with Warlord 24495 | -2/Research | Borebot progress halted 24516 | -2/Research | Borebot progress halted 24539 | -2/Research | Borebot progress halted 24663 | -2/Research | Discovered new exit (range 13) 24678 | -2/Research | Identified exit to Access 24687 | -2/Research | Found Exp. Core Analyzer 24875 | -2/Research | Discovered exit to Access (range 8) 25106 | -2/Research | Spotted Executioner 25110 | -2/Research | Spotted Executioner 25113 | -2/Research | Found Prototype Device 25113 | -2/Research | Identified Adv. Kinecellerator 25146 | -2/Research | Spotted Striker 25149 | -2/Research | Spotted Striker 25154 | -2/Research | Destroyed Striker 25159 | -2/Research | Destroyed Striker 25251 | -2/Research | Warlord invited to help at Command 25251 | -2/Research | Given Cave Seal Controls access code 25457 | -2/Research | Entered Quarantine 25578 | -2/Quarantine | Spotted Alpha 7 25595 | -2/Quarantine | Destroyed Alpha 7 25645 | -2/Quarantine | Found Alien Energy Cannon 25645 | -2/Quarantine | Identified Core Cannon 25714 | -2/Quarantine | Found Alien Launcher 25714 | -2/Quarantine | Identified Sigix Terminator 25868 | -2/Quarantine | Found Alien Slashing Weapon 25873 | -2/Quarantine | Identified Sigix Broadsword 25915 | -2/Quarantine | Cryocooling Duct disabled 25930 | -2/Quarantine | Ambient heat levels rising (+20) 25930 | -2/Quarantine | Non-combat units ordered to evacuate 26171 | -2/Quarantine | Found Prototype Processor 26177 | -2/Quarantine | Discovered exit to Access (range 16) 26209 | -2/Quarantine | Incoming investigation squad redirected 26294 | -2/Quarantine | Found Alien Artifact 26325 | -2/Quarantine | Identified Subatomic Replicator 26406 | -2/Quarantine | System corruption reached 10% 26406 | -2/Quarantine | Entered Access 26406 | -1/Access | Evolved 2 slots: Propulsion x1, Utility x1 26418 | -1/Access | Garrison activated, responded to threat 26534 | -1/Access | Identified Spectral Analyzer 26563 | -1/Access | Lost 3 parts (1p2u) 26732 | -1/Access | Destroyed 10 combat bots 26735 | -1/Access | Lost 11 parts (2p2n5u2w) 26767 | -1/Access | Found Unknown Device 26767 | -1/Access | Identified Quantum Capacitor 26866 | -1/Access | Destroyed 7 combat bots 26961 | -1/Access | Build established: Scavenger-Gunner 27276 | -1/Access | Spotted B-99 Colossus 27523 | -1/Access | Build established: Scavenger-Gladiator 27623 | -1/Access | System corruption reached 10% 27644 | -1/Access | Destroyed 8 combat bots 27906 | -1/Access | First assault squad dispatched 27924 | -1/Access | Incoming assault squad redirected 28673 | -1/Access | Incoming assault squad redirected 29271 | -1/Access | Incoming assault squad redirected 29348 | -1/Access | High security lockdown imminent 29387 | -1/Access | Lost 3 parts (3u) 29425 | -1/Access | Destroyed 8 combat bots 29428 | -1/Access | High security lockdown engaged 29483 | -1/Access | Lost 3 parts (1p2n) 29484 | -1/Access | Discovered new exit (range 5) 29492 | -1/Access | Fired Sigix Terminator 29500 | -1/Access | Identified exit to Surface 29502 | *** | Escaped! Last Messages --------------- 29470_ System corrupted: Lgt. Quantum Reactor rejected. 29470_ P-80 Master destroyed. 29484_ Main Access Shell breached. 29484_ EXIT=FOUND 29486_ R2T1M